[Event "FIDE WYCC Top Boards Girls 2023"]
[Site "Montesilvano"]
[Date "2023.11.18"]
[Round "6.12"]
[White "Kirtadze, Anastasia"]
[Black "Nurgaliyeva, Zarina"]
[Result "1-0"]
[ECO "C93"]
[WhiteElo "1921"]
[BlackElo "2104"]
[Annotator "NA"]
[PlyCount "93"]
[EventDate "2023.11.13"]
[EventType "swiss"]
[EventCountry "ITA"]
[SourceTitle "playchess.com"]
[Source "ChessBase"]
[SourceQuality "1"]
[TimeControl "40/5400+30:1800+30"]

1. e4 {[%emt 0:00:01]} e5 {[%emt 0:00:26]} 2. Nf3 {[%emt 0:00:04]} Nc6 {[%emt 0:00:06]} 3. Bb5 {[%emt 0:00:04]} a6 {[%emt 0:00:04]} 4. Ba4 {[%emt 0:00:04]} Nf6 {[%emt 0:00:08]} 5. O-O {[%emt 0:00:10]} Be7 {[%emt 0:00:28]} 6. Re1 {[%emt 0:00:10]} b5 {[%emt 0:00:12]} 7. Bb3 {[%emt 0:00:03]} d6 {[%emt 0:00:08]} 8. c3 {[%emt 0:00:09]} O-O {[%emt 0:00:17]} 9. h3 {[%emt 0:00:16]} Re8 {[%emt 0:00:29]} 10. d4 {[%emt 0:04:15]} h6 {[%emt 0:00:33]} 11. Nbd2 {[%emt 0:03:21]} Bd7 {[%emt 0:01:21]} 12. Nf1 {[%emt 0:05:51]} a5 {[%emt 0:01:19]} 13. g4 {[%emt 0:06:57]} a4 {[%emt 0:06:33]} 14. Bc2 {[%emt 0:00:26]} Bf8 {[%emt 0:03:12]} 15. Ng3 {[%emt 0:03:32]} g6 {[%emt 0:04:33]} 16. Kg2 {[%emt 0:10:24]} Nh7 {[%emt 0:13:21]} 17. Be3 {[%emt 0:06:24]} a3 {[%emt 0:06:35]} 18. b3 {[%emt 0:01:40]} exd4 {[%emt 0:03:23]} 19. Nxd4 {[%emt 0:05:07]} Nxd4 {[%emt 0:08:29]} 20. cxd4 {[%emt 0:00:18]} Qh4 {[%emt 0:01:31]} 21. f3 {[%emt 0:03:13]} Bg7 {[%emt 0:04:55]} 22. Qd2 {[%emt 0:03:37]} Nf8 {[%emt 0:02:33]} 23. Rad1 {[%emt 0:04:06]} Red8 {[%emt 0:15:11]} 24. Qe2 {[%emt 0:09:59]} Rac8 {[%emt 0:03:19]} 25. b4 {[%emt 0:02:00]} c5 {[%emt 0:07:43]} 26. bxc5 {[%emt 0:08:32]} dxc5 {[%emt 0:00:30]} 27. d5 {[%emt 0:00:04]} Qf6 {[%emt 0:03:24]} 28. Rb1 {[%emt 0:02:20]} Qd6 {[%emt 0:04:22]} 29. f4 {[%emt 0:02:58]} c4 {[%emt 0:00:50]} 30. Bd2 {[%emt 0:04:08]} Bb2 {[%emt 0:00:28]} 31. Qf3 {[%emt 0:02:46]} b4 {[%emt 0:02:57]} 32. f5 {[%emt 0:01:52]} b3 {[%emt 0:04:07]} 33. axb3 {[%emt 0:00:48]} c3 {[%emt 0:00:05]} 34. Bxh6 {[%emt 0:05:48]} a2 {[%emt 0:00:31]} 35. Ra1 {[%emt 0:00:04]} Bxa1 {[%emt 0:01:04]} 36. Rxa1 {[%emt 0:00:07]} gxf5 {[%emt 0:01:01]} 37. Bf4 {[%emt 0:03:38]} fxg4 {[%emt 0:01:15]} 38. hxg4 {[%emt 0:00:04]} Qg6 {[%emt 0:01:32]} 39. g5 {[%emt 0:02:22]} Nh7 {[%emt 0:00:31]} 40. Qe3 {[%emt 0:00:00]} Ra8 {[%emt 0:00:00]} 41. Bd3 {[%emt 0:05:02]} Be6 {[%emt 0:15:15]} 42. dxe6 {[%emt 0:13:04]} fxe6 {[%emt 0:00:51]} 43. Nf5 {[%emt 0:05:27]} Rxd3 {[%emt 0:10:06]} 44. Qxd3 {[%emt 0:00:38]} Qh5 {[%emt 0:01:21]} 45. Nh6+ {[%emt 0:00:40]} Kg7 {[%emt 0:00:07]} 46. Qd7+ {[%emt 0:00:21]} Kg6 {[%emt 0:00:07]} 47. Qf7# {[%emt 0:00:06]} 1-0

[Event "FIDE WYCC Top Boards Girls 2023"]
[Site "Montesilvano"]
[Date "2023.11.20"]
[Round "7.7"]
[White "Allahverdiyeva, Ayan"]
[Black "Hrebenshchykova, Yelyzaveta"]
[Result "1/2-1/2"]
[ECO "B48"]
[WhiteElo "2152"]
[BlackElo "2292"]
[Annotator "RC"]
[PlyCount "125"]
[EventDate "2023.11.13"]
[EventType "swiss"]
[EventCountry "ITA"]
[SourceTitle "playchess.com"]
[Source "ChessBase"]
[SourceQuality "1"]
[TimeControl "40/5400+30:1800+30"]

1. e4 {[%emt 0:00:01]} c5 {[%emt 0:00:04]} 2. Nf3 {[%emt 0:00:05]} e6 {[%emt 0:00:04]} 3. d4 {[%emt 0:00:04]} cxd4 {[%emt 0:00:04]} 4. Nxd4 {[%emt 0:00:04]} Nc6 {[%emt 0:00:03]} 5. Nc3 {[%emt 0:01:44]} a6 {[%emt 0:00:08]} 6. Be3 {[%emt 0:00:20]} Qc7 {[%emt 0:00:37]} 7. Qf3 {[%emt 0:00:24]} Nf6 {[%emt 0:01:17]} 8. O-O-O {[%emt 0:00:16]} Ne5 {[%emt 0:02:38]} 9. Qg3 {[%emt 0:00:15]} b5 {[%emt 0:04:16]} 10. f4 {[%emt 0:05:41]} Neg4 {[%emt 0:00:09]} 11. Bg1 {[%emt 0:00:06]} h5 {[%emt 0:00:42]} 12. e5 {[%emt 0:02:10]} b4 {[%emt 0:00:14]} 13. Na4 {[%emt 0:00:08]} Nd5 {[%emt 0:01:30]} 14. h3 {[%emt 0:00:09]} Nh6 {[%emt 0:00:31]} 15. Bd3 {[%emt 0:02:02]} Bb7 {[%emt 0:01:16]} 16. f5 {[%emt 0:01:36]} Be7 {[%emt 0:01:45]} 17. Be4 {[%emt 0:10:29]} Rc8 {[%emt 0:28:30]} 18. fxe6 {[%emt 0:40:49]} dxe6 {[%emt 0:18:33]} 19. Qxg7 {[%emt 0:05:23]} Rg8 {[%emt 0:04:04]} 20. Nxe6 {[%emt 0:01:09]} Rxg7 {[%emt 0:08:47]} 21. Nxc7+ {[%emt 0:00:16]} Rxc7 {[%emt 0:00:04]} 22. Bxd5 {[%emt 0:00:07]} Bxd5 {[%emt 0:00:53]} 23. Rxd5 {[%emt 0:00:07]} Rxg2 {[%emt 0:00:06]} 24. Bc5 {[%emt 0:01:40]} Nf5 {[%emt 0:01:00]} 25. Re1 {[%emt 0:04:45]} Bxc5 {[%emt 0:06:17]} 26. Rxc5 {[%emt 0:01:43]} Rxc5 {[%emt 0:00:39]} 27. Nxc5 {[%emt 0:00:05]} a5 {[%emt 0:00:41]} 28. Ne4 {[%emt 0:05:08]} Ke7 {[%emt 0:06:37]} 29. c4 {[%emt 0:04:39]} a4 {[%emt 0:03:06]} 30. c5 {[%emt 0:02:29]} a3 {[%emt 0:02:22]} 31. bxa3 {[%emt 0:00:13]} bxa3 {[%emt 0:00:02]} 32. Nc3 {[%emt 0:06:15]} Nd4 {[%emt 0:02:36]} 33. Re3 {[%emt 0:00:28]} Ke6 {[%emt 0:02:02]} 34. Kd1 {[%emt 0:00:46]} Rh2 {[%emt 0:03:23]} 35. Re4 {[%emt 0:03:09]} Rxh3 {[%emt 0:00:56]} 36. Kd2 {[%emt 0:01:45]} Rh2+ {[%emt 0:00:53]} 37. Kd3 {[%emt 0:00:15]} Nc6 {[%emt 0:00:04]} 38. Ne2 {[%emt 0:01:55]} Nxe5+ {[%emt 0:01:01]} 39. Kd4 {[%emt 0:00:06]} f6 {[%emt 0:00:02]} 40. Nf4+ {[%emt 0:00:00]} Kf5 {[%emt 0:00:00]} 41. Ne2 {[%emt 0:08:13]} Ke6 {[%emt 0:04:58]} 42. Re3 {[%emt 0:04:07]} Rh4+ {[%emt 0:03:17]} 43. Kc3 {[%emt 0:00:39]} Kd5 {[%emt 0:02:18]} 44. Kc2 {[%emt 0:01:41]} Rh2 {[%emt 0:15:00]} 45. Kb3 {[%emt 0:02:36]} Kxc5 {[%emt 0:00:32]} 46. Re4 {[%emt 0:00:49]} Rh3+ {[%emt 0:01:10]} 47. Nc3 {[%emt 0:00:17]} Kd6 {[%emt 0:02:16]} 48. Ra4 {[%emt 0:00:05]} f5 {[%emt 0:01:07]} 49. Ra6+ {[%emt 0:01:08]} Nc6 {[%emt 0:00:45]} 50. Kc4 {[%emt 0:00:24]} Rh4+ {[%emt 0:00:34]} 51. Kd3 {[%emt 0:00:28]} Kc5 {[%emt 0:00:34]} 52. Rxa3 {[%emt 0:00:40]} Nb4+ {[%emt 0:03:51]} 53. Kd2 {[%emt 0:00:08]} f4 {[%emt 0:00:52]} 54. Ra5+ {[%emt 0:00:39]} Kc4 {[%emt 0:00:10]} 55. Rf5 {[%emt 0:00:42]} Rh2+ {[%emt 0:00:45]} 56. Ne2 {[%emt 0:00:04]} Nd5 {[%emt 0:00:02]} 57. Ke1 {[%emt 0:01:11]} h4 {[%emt 0:00:45]} 58. Nxf4 {[%emt 0:00:44]} Ne3 {[%emt 0:01:19]} 59. Re5 {[%emt 0:02:46]} Kd4 {[%emt 0:00:19]} 60. Re8 {[%emt 0:00:20]} Ng4 {[%emt 0:01:04]} 61. Ne2+ {[%emt 0:00:31]} Kd3 {[%emt 0:00:11]} 62. Nf4+ {[%emt 0:00:46]} Kd4 {[%emt 0:00:03]} 63. Ne2+ {[%emt 0:01:33]} 1/2-1/2

[Event "FIDE WYCC Top Boards Girls 2023"]
[Site "Montesilvano"]
[Date "2023.11.20"]
[Round "7.8"]
[White "Trifoi, Mihaela-Ioana"]
[Black "Wu, Rochelle"]
[Result "0-1"]
[ECO "B51"]
[WhiteElo "2021"]
[BlackElo "2228"]
[Annotator "RC"]
[PlyCount "62"]
[EventDate "2023.11.13"]
[EventType "swiss"]
[EventCountry "ITA"]
[SourceTitle "playchess.com"]
[Source "ChessBase"]
[SourceQuality "1"]
[TimeControl "40/5400+30:1800+30"]

1. e4 {[%emt 0:00:05]} c5 {[%emt 0:00:19]} 2. Nf3 {[%emt 0:00:08]} d6 {[%emt 0:00:05]} 3. Bb5+ {[%emt 0:00:10]} Nd7 {[%emt 0:00:06]} 4. O-O {[%emt 0:00:31]} a6 {[%emt 0:00:09]} 5. Bd3 {[%emt 0:00:10]} Ngf6 {[%emt 0:00:06]} 6. Re1 {[%emt 0:01:35]} e6 {[%emt 0:00:17]} 7. a4 {[%emt 0:03:03]} b6 {[%emt 0:00:09]} 8. c3 {[%emt 0:00:12]} Bb7 {[%emt 0:00:17]} 9. Bc2 {[%emt 0:00:51]} c4 {[%emt 0:00:09]} 10. Qe2 {[%emt 0:13:44]} Qc7 {[%emt 0:00:27]} 11. d4 {[%emt 0:02:04]} cxd3 {[%emt 0:00:11]} 12. Bxd3 {[%emt 0:00:05]} Nc5 {[%emt 0:01:02]} 13. Nbd2 {[%emt 0:00:08]} Nxd3 {[%emt 0:00:29]} 14. Qxd3 {[%emt 0:00:05]} Be7 {[%emt 0:02:59]} 15. b4 {[%emt 0:15:28]} O-O {[%emt 0:01:51]} 16. Bb2 {[%emt 0:01:26]} Rfd8 {[%emt 0:01:26]} 17. Nd4 {[%emt 0:02:31]} Bf8 {[%emt 0:06:20]} 18. Rac1 {[%emt 0:10:32]} e5 {[%emt 0:03:33]} 19. N4f3 {[%emt 0:06:32]} d5 {[%emt 0:02:56]} 20. exd5 {[%emt 0:01:22]} Nxd5 {[%emt 0:06:44]} 21. Qc4 {[%emt 0:09:21]} Qxc4 {[%emt 0:01:52]} 22. Nxc4 {[%emt 0:00:12]} f6 {[%emt 0:00:30]} 23. Rcd1 {[%emt 0:06:08]} Rac8 {[%emt 0:05:13]} 24. Ne3 {[%emt 0:02:30]} Nxe3 {[%emt 0:05:33]} 25. fxe3 {[%emt 0:00:08]} Bc6 {[%emt 0:01:53]} 26. b5 {[%emt 0:14:46]} axb5 {[%emt 0:00:56]} 27. axb5 {[%emt 0:00:06]} Bxb5 {[%emt 0:00:05]} 28. Rd2 {[%emt 0:01:30]} Rxd2 {[%emt 0:00:44]} 29. Nxd2 {[%emt 0:00:06]} Rd8 {[%emt 0:00:04]} 30. Nf3 {[%emt 0:00:11]} Bc5 {[%emt 0:00:37]} 31. Kf2 {[%emt 0:01:36]} Rd3 {[%emt 0:00:07]} 0-1

[Event "FIDE WYCC Top Boards Girls 2023"]
[Site "Montesilvano"]
[Date "2023.11.20"]
[Round "7.9"]
[White "Nurmanova, Alua"]
[Black "Wang, Chuqiao"]
[Result "0-1"]
[ECO "C77"]
[WhiteElo "2367"]
[BlackElo "2215"]
[Annotator "RC"]
[PlyCount "78"]
[EventDate "2023.11.13"]
[EventType "swiss"]
[EventCountry "ITA"]
[SourceTitle "playchess.com"]
[Source "ChessBase"]
[SourceQuality "1"]
[TimeControl "40/5400+30:1800+30"]

1. e4 {[%emt 0:00:14]} e5 {[%emt 0:00:08]} 2. Nf3 {[%emt 0:00:17]} Nc6 {[%emt 0:00:10]} 3. Bb5 {[%emt 0:00:27]} a6 {[%emt 0:00:05]} 4. Ba4 {[%emt 0:00:06]} Nf6 {[%emt 0:00:08]} 5. Nc3 {[%emt 0:00:50]} b5 {[%emt 0:06:37]} 6. Bb3 {[%emt 0:02:06]} Bc5 {[%emt 0:00:57]} 7. a4 {[%emt 0:07:33]} b4 {[%emt 0:02:19]} 8. Nd5 {[%emt 0:01:14]} d6 {[%emt 0:04:08]} 9. Nxf6+ {[%emt 0:02:53]} Qxf6 {[%emt 0:00:14]} 10. Bd5 {[%emt 0:00:16]} Bb7 {[%emt 0:11:09]} 11. c3 {[%emt 0:01:35]} bxc3 {[%emt 0:03:29]} 12. bxc3 {[%emt 0:01:14]} Na5 {[%emt 0:03:22]} 13. Bxb7 {[%emt 0:16:48]} Nxb7 {[%emt 0:00:06]} 14. a5 {[%emt 0:00:58]} O-O {[%emt 0:02:30]} 15. O-O {[%emt 0:00:32]} Qe7 {[%emt 0:09:33]} 16. Qa4 {[%emt 0:12:56]} Qe8 {[%emt 0:05:04]} 17. Qc2 {[%emt 0:01:39]} Qc6 {[%emt 0:02:59]} 18. d3 {[%emt 0:09:01]} Bb4 {[%emt 0:02:54]} 19. Ra4 {[%emt 0:15:56]} Bxa5 {[%emt 0:00:33]} 20. Qa2 {[%emt 0:00:19]} Bb6 {[%emt 0:00:39]} 21. d4 {[%emt 0:01:11]} exd4 {[%emt 0:01:25]} 22. cxd4 {[%emt 0:00:19]} Rfe8 {[%emt 0:02:30]} 23. Ng5 {[%emt 0:03:59]} Re7 {[%emt 0:08:27]} 24. Be3 {[%emt 0:05:50]} h6 {[%emt 0:01:28]} 25. Rc1 {[%emt 0:00:21]} Qe8 {[%emt 0:00:31]} 26. Rxa6 {[%emt 0:01:05]} Rxa6 {[%emt 0:01:01]} 27. Qxa6 {[%emt 0:00:01]} hxg5 {[%emt 0:02:30]} 28. Qxb7 {[%emt 0:00:02]} Rxe4 {[%emt 0:00:13]} 29. Ra1 {[%emt 0:00:42]} Qe6 {[%emt 0:01:56]} 30. h3 {[%emt 0:04:04]} Kh7 {[%emt 0:04:03]} 31. Qb8 {[%emt 0:02:18]} g4 {[%emt 0:02:05]} 32. hxg4 {[%emt 0:05:59]} Rxe3 {[%emt 0:05:29]} 33. fxe3 {[%emt 0:00:06]} Qxe3+ {[%emt 0:00:03]} 34. Kh2 {[%emt 0:00:14]} Bxd4 {[%emt 0:00:20]} 35. Qb1+ {[%emt 0:01:56]} g6 {[%emt 0:00:12]} 36. Ra4 {[%emt 0:00:36]} Be5+ {[%emt 0:06:46]} 37. Kh1 {[%emt 0:00:05]} c5 {[%emt 0:00:13]} 38. Re4 {[%emt 0:01:15]} Qh6+ {[%emt 0:00:27]} 39. Kg1 {[%emt 0:00:02]} Bd4+ {[%emt 0:00:03]} 0-1

[Event "FIDE WYCC Top Boards Girls 2023"]
[Site "Montesilvano"]
[Date "2023.11.20"]
[Round "7.10"]
[White "Shvedova, Alexandra"]
[Black "Trunz, Michelle"]
[Result "1-0"]
[ECO "B90"]
[WhiteElo "2170"]
[BlackElo "1997"]
[Annotator "RC"]
[PlyCount "89"]
[EventDate "2023.11.13"]
[EventType "swiss"]
[EventCountry "ITA"]
[SourceTitle "playchess.com"]
[Source "ChessBase"]
[SourceQuality "1"]
[TimeControl "40/5400+30:1800+30"]

1. e4 {[%emt 0:00:03]} c5 {[%emt 0:00:05]} 2. Nf3 {[%emt 0:00:08]} Nf6 {[%emt 0:00:09]} 3. Nc3 {[%emt 0:00:37]} d6 {[%emt 0:00:13]} 4. d4 {[%emt 0:00:07]} cxd4 {[%emt 0:00:07]} 5. Nxd4 {[%emt 0:00:05]} a6 {[%emt 0:00:04]} 6. f3 {[%emt 0:00:05]} e5 {[%emt 0:00:17]} 7. Nb3 {[%emt 0:00:07]} Be7 {[%emt 0:00:43]} 8. Be3 {[%emt 0:00:23]} Be6 {[%emt 0:00:23]} 9. Qd2 {[%emt 0:00:34]} h5 {[%emt 0:00:16]} 10. Nd5 {[%emt 0:00:35]} Nxd5 {[%emt 0:00:49]} 11. exd5 {[%emt 0:00:07]} Bf5 {[%emt 0:00:03]} 12. Bd3 {[%emt 0:04:38]} Bxd3 {[%emt 0:00:29]} 13. Qxd3 {[%emt 0:00:07]} Nd7 {[%emt 0:00:58]} 14. Qd2 {[%emt 0:03:36]} b6 {[%emt 0:02:25]} 15. c4 {[%emt 0:09:11]} a5 {[%emt 0:02:02]} 16. Rc1 {[%emt 0:06:18]} Nc5 {[%emt 0:09:29]} 17. Na1 {[%emt 0:04:24]} Qd7 {[%emt 0:05:02]} 18. O-O {[%emt 0:05:20]} Qf5 {[%emt 0:07:49]} 19. b3 {[%emt 0:04:37]} Qg6 {[%emt 0:05:05]} 20. a3 {[%emt 0:14:08]} f5 {[%emt 0:03:38]} 21. Qc2 {[%emt 0:13:14]} h4 {[%emt 0:04:34]} 22. b4 {[%emt 0:01:54]} axb4 {[%emt 0:01:03]} 23. axb4 {[%emt 0:00:06]} Nd7 {[%emt 0:01:29]} 24. Nb3 {[%emt 0:03:12]} h3 {[%emt 0:04:13]} 25. g3 {[%emt 0:07:39]} O-O {[%emt 0:19:57]} 26. Rcd1 {[%emt 0:03:44]} Qh5 {[%emt 0:05:15]} 27. Kh1 {[%emt 0:03:19]} Rf6 {[%emt 0:07:24]} 28. f4 {[%emt 0:02:40]} Rff8 {[%emt 0:05:13]} 29. fxe5 {[%emt 0:05:42]} dxe5 {[%emt 0:00:38]} 30. c5 {[%emt 0:00:05]} bxc5 {[%emt 0:00:44]} 31. bxc5 {[%emt 0:00:07]} Qg4 {[%emt 0:03:59]} 32. d6 {[%emt 0:02:13]} Bd8 {[%emt 0:03:27]} 33. Nd2 {[%emt 0:02:06]} f4 {[%emt 0:04:04]} 34. Qc4+ {[%emt 0:02:23]} Kh8 {[%emt 0:00:08]} 35. c6 {[%emt 0:01:28]} Bb6 {[%emt 0:02:18]} 36. Bxb6 {[%emt 0:00:32]} Nxb6 {[%emt 0:00:01]} 37. Qe4 {[%emt 0:00:23]} Ra4 {[%emt 0:01:09]} 38. Qxe5 {[%emt 0:01:02]} Qc8 {[%emt 0:01:46]} 39. Qh5+ {[%emt 0:00:47]} Kg8 {[%emt 0:00:09]} 40. Qf3 {[%emt 0:00:00]} Qe6 {[%emt 0:00:00]} 41. Qb3 {[%emt 0:08:01]} Qxb3 {[%emt 0:07:23]} 42. Nxb3 {[%emt 0:00:06]} Rc4 {[%emt 0:11:58]} 43. d7 {[%emt 0:01:43]} Rd8 {[%emt 0:00:30]} 44. Na5 {[%emt 0:00:18]} Rc5 {[%emt 0:01:39]} 45. Nb7 {[%emt 0:00:09]} 1-0

[Event "FIDE WYCC Top Boards Girls 2023"]
[Site "Montesilvano"]
[Date "2023.11.20"]
[Round "7.11"]
[White "Kirtadze, Anastasia"]
[Black "Shukhman, Anna"]
[Result "*"]
[ECO "B76"]
[WhiteElo "1921"]
[BlackElo "2263"]
[Annotator "RC"]
[PlyCount "71"]
[EventDate "2023.11.13"]
[EventType "swiss"]
[EventCountry "ITA"]
[SourceTitle "playchess.com"]
[Source "ChessBase"]
[SourceQuality "1"]
[TimeControl "40/5400+30:1800+30"]

1. e4 {[%emt 0:00:01]} c5 {[%emt 0:00:06]} 2. Nf3 {[%emt 0:00:10]} d6 {[%emt 0:00:03]} 3. d4 {[%emt 0:00:23]} cxd4 {[%emt 0:00:04]} 4. Nxd4 {[%emt 0:00:07]} Nf6 {[%emt 0:00:08]} 5. Nc3 {[%emt 0:00:06]} g6 {[%emt 0:00:02]} 6. Be3 {[%emt 0:00:43]} Bg7 {[%emt 0:00:04]} 7. f3 {[%emt 0:00:06]} Nc6 {[%emt 0:00:02]} 8. Qd2 {[%emt 0:01:24]} O-O {[%emt 0:00:19]} 9. O-O-O {[%emt 0:00:39]} d5 {[%emt 0:00:02]} 10. exd5 {[%emt 0:00:34]} Nxd5 {[%emt 0:00:06]} 11. Nxc6 {[%emt 0:00:26]} bxc6 {[%emt 0:00:03]} 12. Bd4 {[%emt 0:00:09]} Bxd4 {[%emt 0:00:05]} 13. Qxd4 {[%emt 0:00:12]} Qb6 {[%emt 0:00:06]} 14. Na4 {[%emt 0:02:25]} Qc7 {[%emt 0:00:05]} 15. Bc4 {[%emt 0:00:59]} Rb8 {[%emt 0:09:43]} 16. a3 {[%emt 0:16:26]} Rd8 {[%emt 0:11:31]} 17. g4 {[%emt 0:20:11]} Be6 {[%emt 0:12:40]} 18. Nc5 {[%emt 0:11:16]} Nf4 {[%emt 0:04:47]} 19. Nxe6 {[%emt 0:08:49]} Rxd4 {[%emt 0:01:18]} 20. Nxc7 {[%emt 0:00:04]} Rxc4 {[%emt 0:00:03]} 21. Rhe1 {[%emt 0:03:55]} e6 {[%emt 0:04:11]} 22. Rd7 {[%emt 0:05:36]} g5 {[%emt 0:03:45]} 23. c3 {[%emt 0:08:01]} Ng6 {[%emt 0:01:13]} 24. Na6 {[%emt 0:02:43]} Rb5 {[%emt 0:32:12]} 25. Rxa7 {[%emt 0:02:55]} Rf4 {[%emt 0:00:17]} 26. Nb4 {[%emt 0:01:33]} c5 {[%emt 0:03:27]} 27. a4 {[%emt 0:01:04]} Rb6 {[%emt 0:00:03]} 28. Nd3 {[%emt 0:01:00]} Rxf3 {[%emt 0:00:00]} 29. a5 {[%emt 0:01:00]} Rb5 {[%emt 0:00:00]} 30. Rd1 {[%emt 0:01:22]} e5 {[%emt 0:04:18]} 31. c4 {[%emt 0:04:54]} Rb8 {[%emt 0:00:03]} 32. a6 {[%emt 0:00:51]} e4 {[%emt 0:06:55]} 33. Rb7 {[%emt 0:01:23]} Ra8 {[%emt 0:00:03]} 34. Nxc5 {[%emt 0:00:30]} e3 {[%emt 0:02:11]} 35. a7 {[%emt 0:00:41]} Kg7 {[%emt 0:02:03]} 36. Ne6+ {[%emt 0:00:45]} *

[Event "FIDE WYCC Top Boards Girls 2023"]
[Site "Montesilvano"]
[Date "2023.11.20"]
[Round "7.12"]
[White "Khamdamova, Afruza"]
[Black "Goriachkina, Oksana"]
[Result "1-0"]
[ECO "C03"]
[WhiteElo "2199"]
[BlackElo "1915"]
[Annotator "RC"]
[PlyCount "111"]
[EventDate "2023.11.13"]
[EventType "swiss"]
[EventCountry "ITA"]
[SourceTitle "playchess.com"]
[Source "ChessBase"]
[SourceQuality "1"]
[TimeControl "40/5400+30:1800+30"]

1. e4 {[%emt 0:00:13]} e6 {[%emt 0:00:02]} 2. d4 {[%emt 0:00:25]} d5 {[%emt 0:00:04]} 3. Nd2 {[%emt 0:00:18]} Be7 {[%emt 0:00:06]} 4. Ngf3 {[%emt 0:02:49]} c5 {[%emt 0:00:59]} 5. exd5 {[%emt 0:00:48]} Qxd5 {[%emt 0:04:07]} 6. Bc4 {[%emt 0:00:26]} Qh5 {[%emt 0:05:27]} 7. dxc5 {[%emt 0:02:54]} Nf6 {[%emt 0:01:13]} 8. b4 {[%emt 0:13:31]} a5 {[%emt 0:03:21]} 9. c3 {[%emt 0:00:07]} axb4 {[%emt 0:02:11]} 10. cxb4 {[%emt 0:00:05]} Nd5 {[%emt 0:01:05]} 11. Bxd5 {[%emt 0:06:17]} Qxd5 {[%emt 0:00:03]} 12. Bb2 {[%emt 0:08:24]} Rxa2 {[%emt 0:08:43]} 13. Rxa2 {[%emt 0:01:24]} Qxa2 {[%emt 0:00:05]} 14. Bxg7 {[%emt 0:00:08]} Rg8 {[%emt 0:00:03]} 15. Be5 {[%emt 0:00:05]} Nc6 {[%emt 0:00:03]} 16. O-O {[%emt 0:02:21]} Nxe5 {[%emt 0:27:52]} 17. Nxe5 {[%emt 0:00:06]} Qd5 {[%emt 0:00:07]} 18. Nef3 {[%emt 0:17:48]} Bd7 {[%emt 0:03:41]} 19. Qe2 {[%emt 0:07:23]} Rg4 {[%emt 0:13:22]} 20. Rb1 {[%emt 0:02:58]} f6 {[%emt 0:01:29]} 21. h3 {[%emt 0:01:23]} Rg7 {[%emt 0:01:33]} 22. Ne4 {[%emt 0:06:30]} Qf5 {[%emt 0:07:59]} 23. Ra1 {[%emt 0:05:46]} Qf4 {[%emt 0:06:55]} 24. Ra8+ {[%emt 0:07:27]} Kf7 {[%emt 0:00:20]} 25. Nfd2 {[%emt 0:00:09]} Qh6 {[%emt 0:03:59]} 26. Kh2 {[%emt 0:05:53]} f5 {[%emt 0:02:34]} 27. Nd6+ {[%emt 0:00:44]} Bxd6+ {[%emt 0:00:36]} 28. cxd6 {[%emt 0:00:01]} Qf4+ {[%emt 0:02:21]} 29. g3 {[%emt 0:00:17]} Qxd6 {[%emt 0:01:12]} 30. Nc4 {[%emt 0:00:36]} Qd4 {[%emt 0:01:06]} 31. Ne5+ {[%emt 0:01:50]} Ke7 {[%emt 0:00:40]} 32. Nxd7 {[%emt 0:01:51]} Kxd7 {[%emt 0:00:32]} 33. Ra3 {[%emt 0:03:55]} Ke7 {[%emt 0:01:14]} 34. Rd3 {[%emt 0:00:17]} Qf6 {[%emt 0:01:44]} 35. Qd2 {[%emt 0:01:29]} Kf7 {[%emt 0:00:29]} 36. h4 {[%emt 0:00:47]} h6 {[%emt 0:00:28]} 37. Rd6 {[%emt 0:00:52]} Kg6 {[%emt 0:00:29]} 38. Qe2 {[%emt 0:00:32]} Re7 {[%emt 0:00:09]} 39. b5 {[%emt 0:00:15]} Kg7 {[%emt 0:00:54]} 40. b6 {[%emt 0:00:00]} Kf7 {[%emt 0:00:00]} 41. Qd2 {[%emt 0:04:28]} Qe5 {[%emt 0:11:19]} 42. Rd8 {[%emt 0:01:40]} Kg7 {[%emt 0:00:23]} 43. Rc8 {[%emt 0:01:16]} Kg6 {[%emt 0:14:52]} 44. Rg8+ {[%emt 0:08:35]} Rg7 {[%emt 0:04:10]} 45. Rh8 {[%emt 0:04:14]} f4 {[%emt 0:00:04]} 46. g4 {[%emt 0:04:48]} Qf6 {[%emt 0:01:55]} 47. Kh3 {[%emt 0:00:46]} Kf7 {[%emt 0:01:02]} 48. Qd7+ {[%emt 0:01:08]} Kg6 {[%emt 0:00:47]} 49. Qd3+ {[%emt 0:01:18]} Kf7 {[%emt 0:00:05]} 50. Rb8 {[%emt 0:00:28]} Qe7 {[%emt 0:00:55]} 51. Qf3 {[%emt 0:00:28]} Qd6 {[%emt 0:00:33]} 52. Rxb7+ {[%emt 0:00:38]} Kg8 {[%emt 0:00:34]} 53. Rxg7+ {[%emt 0:00:44]} Kxg7 {[%emt 0:00:05]} 54. Qc3+ {[%emt 0:00:05]} Kg6 {[%emt 0:00:17]} 55. h5+ {[%emt 0:00:10]} Kf7 {[%emt 0:00:20]} 56. Qc7+ {[%emt 0:00:09]} 1-0